fUSD/lending_fUSD_20250421
["ID","MTS","AMOUNT","RATE_DAILY","PERIOD"]
[358478360,1745198205913,-500.0,0.0005589,120]
[358478361,1745198205948,-500.0,0.0005589,120]
[358478362,1745198205982,-500.0,0.0005589,120]
[358478363,1745198206017,-500.0,0.0005589,120]
[358478364,1745198206050,-500.0,0.0005589,120]
[358478365,1745198206083,-510.04,0.0005589,120]
[358478366,1745198206116,-500.0,0.0005589,120]
[358478367,1745198206151,-500.0,0.0005589,120]
[358478368,1745198206182,-500.0,0.0005589,120]
[358478369,1745198206212,-500.0,0.0005589,120]
[358478370,1745198206243,-500.0,0.0005589,120]
[358478371,1745198206274,-500.0,0.0005589,120]
[358478372,1745198206306,-500.0,0.0005589,120]
[358478373,1745198206339,-500.0,0.0005589,120]
[358478374,1745198206372,-500.0,0.0005589,120]
[358478375,1745198206404,-500.0,0.0005589,120]
[358478376,1745198206437,-598.38697414,0.0005589,120]
[358478377,1745198206470,-489.05,0.0005589,120]
[358478378,1745198206502,-450.17629989,0.0005589,118]
[358478379,1745198206533,-500.0,0.0005589,120]
[358478380,1745198206565,-500.0,0.0005589,120]
[358478381,1745198206597,-500.0,0.0005589,120]
[358478382,1745198206630,-500.0,0.0005589,120]
[358478383,1745198206663,-500.0,0.0005589,120]
[358478384,1745198206699,-500.0,0.0005589,120]
[358478385,1745198206733,-500.0,0.0005589,120]
[358478386,1745198206768,-500.0,0.0005589,120]
[358478387,1745198206802,-531.16,0.0005589,120]
[358478388,1745198206839,-229.63862188,0.0005589,120]
[358478389,1745198206875,-500.0,0.0005589,120]
[358478390,1745198206911,-500.0,0.0005589,120]
[358478391,1745198206944,-500.0,0.0005589,120]
[358478392,1745198206976,-261.06249172,0.0005589,120]
[358478393,1745198207008,-500.0,0.0005589,120]
[358478394,1745198207039,-151.0,0.0005589,120]
[358478395,1745198207072,-500.0,0.0005589,120]
[358478396,1745198207103,-151.0,0.0005589,120]
[358478397,1745198207136,-500.0,0.0005589,120]
[358478398,1745198207168,-500.0,0.0005589,120]
[358478399,1745198207202,-500.0,0.0005589,120]
[358478400,1745198207240,-500.0,0.0005589,120]
[358478401,1745198207276,-500.0,0.0005589,120]
[358478402,1745198207310,-500.0,0.0005589,120]
[358478403,1745198207343,-500.0,0.0005589,120]
[358478404,1745198207375,-500.0,0.0005589,120]
[358478405,1745198207407,-500.0,0.0005589,120]
[358478406,1745198207440,-500.0,0.0005589,120]
[358478407,1745198207473,-500.0,0.0005589,120]
[358478408,1745198207504,-500.0,0.0005589,120]
[358478409,1745198207537,-500.0,0.0005589,120]
[358478410,1745198207568,-600.69,0.0005589,120]
[358478411,1745198207600,-500.0,0.0005589,120]
[358478412,1745198207631,-500.0,0.0005589,120]
[358478413,1745198207664,-562.5,0.0005589,120]
[358478414,1745198207699,-500.0,0.0005589,120]
[358478415,1745198207733,-500.0,0.0005589,120]
[358478416,1745198207767,-570.76664472,0.0005589,120]
[358478417,1745198207799,-500.0,0.0005589,120]
[358478418,1745198207831,-500.0,0.0005589,120]
[358478419,1745198207866,-500.0,0.0005589,120]
[358478420,1745198207901,-500.0,0.0005589,120]
[358478421,1745198207935,-500.0,0.0005589,120]
[358478422,1745198207969,-500.0,0.0005589,120]
[358478423,1745198208130,-413.12741202,0.0005589,120]
[358478424,1745198208167,-729.06,0.0005589,120]
[358478425,1745198208202,-500.0,0.0005589,120]
[358478426,1745198208238,-500.0,0.0005589,120]
[358478427,1745198208272,-500.0,0.0005589,30]
[358478428,1745198208306,-500.0,0.0005589,120]
[358478429,1745198208340,-500.0,0.0005589,120]
[358478430,1745198208373,-500.0,0.0005589,120]
[358478431,1745198208408,-500.0,0.0005589,120]
[358478432,1745198208442,-500.0,0.0005589,120]
[358478433,1745198208477,-500.0,0.0005589,120]
[358478434,1745198208510,-500.0,0.0005589,120]
[358478435,1745198208544,-500.0,0.0005589,120]
[358478436,1745198208579,-500.0,0.0005589,120]
[358478437,1745198208614,-500.0,0.0005589,120]
[358478438,1745198208653,-500.0,0.0005589,120]
[358478439,1745198208691,-500.0,0.0005589,120]
[358478440,1745198208729,-500.0,0.0005589,120]
[358478441,1745198208766,-500.0,0.0005589,120]
[358478442,1745198208803,-500.0,0.0005589,120]
[358478443,1745198208840,-999.0,0.0005589,120]
[358478444,1745198208875,-500.0,0.0005589,120]
[358478445,1745198208913,-588.03,0.0005589,120]
[358478446,1745198208950,-313.01681124,0.0005589,120]
[358478447,1745198208985,-379.96,0.0005589,120]
[358478448,1745198209020,-500.0,0.0005589,120]
[358478449,1745198209055,-514.48353842,0.0005589,120]
[358478450,1745198209089,-500.0,0.0005589,120]
[358478451,1745198209122,-500.0,0.0005589,120]
[358478452,1745198209158,-500.0,0.0005589,120]
[358478453,1745198209194,-150.0,0.00055981,120]
[358478454,1745198209229,-301.0,0.00056,120]
[358478455,1745198209264,-241.51,0.00056,60]
[358478456,1745198209298,-151.0,0.0005604,120]
[358478457,1745198209333,-999.0,0.00056164,120]
[358478458,1745198209367,-208.0,0.0005635,30]
[358478459,1745198209404,-211.0,0.0005635,30]
[358478460,1745198209442,-300.0,0.00056437,30]
[358478461,1745198209481,-500.0,0.00056437,60]
[358478462,1745198209516,-190.58637941,0.00056438,120]
[358478463,1745198209552,-571.06,0.00056438,120]
[358478464,1745198209586,-525.72300058,0.00056438,120]
[358478465,1745198209624,-500.0,0.00056438,120]
[358478466,1745198209665,-500.0,0.00056438,120]
[358478467,1745198209703,-289.99458853,0.00056438,120]
[358478468,1745198209739,-500.0,0.00056438,120]
[358478469,1745198209775,-500.0,0.00056438,120]
[358478470,1745198209810,-500.0,0.00056438,120]
[358478471,1745198209847,-500.0,0.00056438,120]
[358478472,1745198209883,-500.0,0.00056438,120]
[358478473,1745198209919,-500.0,0.00056438,120]
[358478474,1745198209952,-500.0,0.00056438,120]
[358478475,1745198209985,-500.0,0.00056438,120]
[358478476,1745198210018,-500.0,0.00056438,120]
[358478477,1745198210052,-500.0,0.00056438,120]
[358478478,1745198210085,-500.0,0.00056438,120]
[358478479,1745198210118,-500.0,0.00056438,120]
[358478480,1745198210152,-603.47396589,0.00056438,120]
[358478481,1745198210185,-500.0,0.00056438,120]
[358478482,1745198210217,-500.0,0.00056438,120]
[358478483,1745198210251,-500.0,0.00056438,120]
[358478484,1745198210283,-500.0,0.00056438,120]
[358478485,1745198210314,-294.32935384,0.00056438,120]
[358478486,1745198210346,-500.0,0.00056438,120]
[358478487,1745198210378,-500.0,0.00056438,120]
[358478488,1745198210410,-500.0,0.00056438,120]
[358478489,1745198210443,-500.0,0.00056438,120]
[358478490,1745198210477,-576.31141204,0.00056438,120]
[358478491,1745198210509,-534.50730107,0.00056438,120]
[358478492,1745198210542,-534.00366593,0.00056438,120]
[358478493,1745198210578,-500.0,0.00056438,120]
[358478494,1745198210611,-500.0,0.00056438,120]
[358478495,1745198210644,-500.0,0.00056438,120]
[358478496,1745198210678,-500.0,0.00056438,120]
[358478497,1745198210713,-999.0,0.00056438,120]
[358478498,1745198210749,-500.0,0.00056438,30]
[358478499,1745198210788,-601.33,0.00056438,120]
[358478500,1745198210829,-500.0,0.00056438,120]
[358478501,1745198210870,-500.0,0.00056438,120]
[358478502,1745198210908,-500.0,0.00056438,120]
[358478503,1745198210944,-500.0,0.00056438,120]
[358478504,1745198210978,-551.72687847,0.00056438,120]
[358478505,1745198211012,-500.0,0.00056438,120]
[358478506,1745198211046,-500.0,0.00056438,120]
[358478507,1745198211079,-500.0,0.00056438,120]
[358478508,1745198211112,-500.0,0.00056438,120]
[358478509,1745198211147,-500.0,0.00056438,120]
[358478510,1745198211179,-500.0,0.00056438,120]
[358478511,1745198211215,-500.0,0.00056438,120]
[358478512,1745198211251,-500.0,0.00056438,120]
[358478513,1745198211287,-500.0,0.00056438,120]
[358478514,1745198211323,-500.0,0.00056438,120]
[358478515,1745198211358,-500.0,0.00056438,120]
[358478516,1745198211392,-500.0,0.00056438,120]
[358478517,1745198211427,-500.0,0.00056438,120]
[358478518,1745198211462,-500.0,0.00056438,120]
[358478519,1745198211497,-653.23,0.00056438,120]
[358478520,1745198211532,-500.0,0.00056438,120]
[358478521,1745198211567,-500.0,0.00056438,120]
[358478522,1745198211602,-177.930306,0.00056438,120]
[358478523,1745198211636,-173.01175398,0.00056438,120]
[358478524,1745198211673,-177.930306,0.00056438,120]
[358478525,1745198211710,-500.0,0.00056438,120]
[358478526,1745198211745,-500.0,0.00056438,120]
[358478527,1745198211912,-500.0,0.00056438,120]
[358478528,1745198211948,-500.0,0.00056438,120]
[358478529,1745198211984,-500.0,0.00056438,120]
[358478530,1745198212021,-500.0,0.00056438,120]
[358478531,1745198212056,-500.0,0.00056438,120]
[358478532,1745198212090,-355.59378856,0.00056438,120]
[358478533,1745198212124,-500.0,0.00056438,120]
[358478534,1745198212159,-500.0,0.00056438,120]
[358478535,1745198212195,-500.0,0.00056438,30]
[358478536,1745198212231,-500.0,0.00056438,120]
[358478537,1745198212266,-500.0,0.00056438,120]
[358478538,1745198212303,-500.0,0.00056438,120]
[358478539,1745198212340,-500.0,0.00056438,120]
[358478540,1745198212377,-500.0,0.00056438,120]
[358478541,1745198212413,-500.0,0.00056438,120]
[358478542,1745198212448,-500.0,0.00056438,120]
[358478543,1745198212483,-500.0,0.00056438,120]
[358478544,1745198212517,-500.0,0.00056438,120]
[358478545,1745198212552,-500.0,0.00056438,120]
[358478546,1745198212586,-194.42020584,0.00056438,120]
[358478547,1745198212621,-500.0,0.00056438,120]
[358478548,1745198212656,-552.76672016,0.00056438,120]
[358478549,1745198212690,-500.0,0.00056438,120]
[358478550,1745198212724,-500.0,0.00056438,120]
[358478551,1745198212759,-500.0,0.00056438,120]
[358478552,1745198212794,-451.79355123,0.00056438,120]
[358478553,1745198212832,-500.0,0.00056438,120]
[358478554,1745198212870,-500.0,0.00056438,120]
[358478555,1745198212905,-500.0,0.00056438,120]
[358478556,1745198212938,-521.95,0.00056438,120]
[358478557,1745198212972,-180.95,0.00056438,120]
[358478558,1745198213006,-277.50290677,0.00056438,120]
[358478559,1745198213041,-543.76395847,0.00056438,120]
[358478560,1745198213074,-500.0,0.00056438,120]
[358478561,1745198213110,-500.0,0.00056438,120]
[358478562,1745198213145,-500.0,0.00056438,120]
[358478563,1745198213180,-500.0,0.00056438,120]
[358478564,1745198213216,-154.13,0.00056438,120]
[358478565,1745198213256,-163.55247024,0.00056438,120]
[358478566,1745198213293,-500.0,0.00056438,120]
[358478567,1745198213330,-500.0,0.00056438,120]
[358478568,1745198213365,-500.0,0.00056438,120]
[358478569,1745198213399,-500.0,0.00056438,120]
[358478570,1745198213433,-540.25574967,0.00056438,120]
[358478571,1745198213468,-500.0,0.00056438,120]
[358478572,1745198213502,-500.0,0.00056438,120]
[358478573,1745198213537,-211.348135,0.00056438,120]
[358478574,1745198213571,-622.14,0.00056438,120]
[358478575,1745198213605,-151.0,0.00056438,120]
[358478576,1745198213640,-500.0,0.00056438,120]
[358478577,1745198213675,-500.0,0.00056438,120]
[358478578,1745198213711,-220.989328,0.00056438,120]
[358478579,1745198213745,-500.0,0.00056438,120]
[358478580,1745198213780,-500.0,0.00056438,120]
[358478581,1745198213813,-500.0,0.00056438,120]
[358478582,1745198213850,-500.0,0.00056438,120]
[358478583,1745198213885,-500.0,0.00056438,120]
[358478584,1745198213918,-500.0,0.00056438,120]
[358478585,1745198213951,-500.0,0.00056438,120]
[358478586,1745198213983,-500.0,0.00056438,120]
[358478587,1745198214016,-500.0,0.00056438,120]
[358478588,1745198214050,-500.0,0.00056438,120]
[358478589,1745198214084,-500.0,0.00056438,120]
[358478590,1745198214118,-500.0,0.00056438,120]
[358478591,1745198214152,-484.27706412,0.00056438,120]
[358478592,1745198214184,-500.0,0.00056438,120]
[358478593,1745198214217,-500.0,0.00056438,120]
[358478594,1745198214250,-500.0,0.00056438,120]
[358478595,1745198214283,-500.0,0.00056438,120]
[358478596,1745198214316,-531.16,0.00056438,120]
[358478597,1745198214350,-500.0,0.00056438,120]
[358478598,1745198214383,-500.0,0.00056438,120]
[358478599,1745198214416,-500.0,0.00056438,120]
[358478600,1745198214451,-151.0,0.00056438,120]
[358478601,1745198214487,-500.0,0.00056438,120]
[358478602,1745198214520,-276.745174,0.00056438,120]
[358478603,1745198214554,-500.0,0.00056438,120]
[358478604,1745198214588,-500.0,0.00056438,120]
[358478605,1745198214622,-500.0,0.00056438,120]
[358478606,1745198214658,-500.0,0.00056438,120]
[358478607,1745198214693,-354.40513633,0.00056438,120]
[358478608,1745198214726,-500.0,0.00056438,120]
[358478609,1745198214759,-500.0,0.00056438,120]
[358478610,1745198214794,-500.0,0.00056438,120]
[358478611,1745198214832,-500.0,0.00056438,120]
[358478612,1745198214868,-500.0,0.00056438,120]
[358478613,1745198214902,-500.0,0.00056438,120]
[358478614,1745198214937,-555.88,0.00056438,120]
[358478615,1745198214971,-600.69,0.00056438,120]
[358478616,1745198215005,-165.81924731,0.00056438,120]
[358478617,1745198215041,-500.0,0.00056438,120]
[358478618,1745198215076,-562.5,0.00056438,120]
[358478619,1745198215110,-500.0,0.00056438,120]
[358478620,1745198215145,-500.0,0.00056438,120]
[358478621,1745198215180,-500.0,0.00056438,120]
[358478622,1745198215215,-500.0,0.00056438,120]
[358478623,1745198215249,-500.0,0.00056438,120]
[358478624,1745198215282,-729.06,0.00056438,120]
[358478625,1745198215315,-500.0,0.00056438,120]
[358478626,1745198215347,-223.61,0.00056438,30]
[358478627,1745198215381,-500.0,0.00056438,120]
[358478628,1745198215416,-500.0,0.00056438,120]
[358478629,1745198215450,-500.0,0.00056438,120]
[358478630,1745198215485,-324.49892202,0.00056438,120]
[358478631,1745198215691,-500.0,0.00056438,120]
[358478632,1745198215730,-500.0,0.00056438,120]
[358478633,1745198215767,-500.0,0.00056438,120]
[358478634,1745198215803,-548.40695254,0.00056438,120]
[358478635,1745198215840,-500.0,0.00056438,120]
[358478636,1745198215875,-500.0,0.00056438,120]
[358478637,1745198215912,-999.0,0.00056438,120]
[358478638,1745198215948,-540.78121914,0.00056438,120]
[358478639,1745198215985,-500.0,0.00056438,120]
[358478640,1745198216022,-500.0,0.00056438,120]
[358478641,1745198216059,-500.0,0.00056438,120]
[358478642,1745198216094,-2000.0,0.000565,90]
[358478643,1745198216131,-1000.0,0.0005651,120]
[358478644,1745198216168,-999.0,0.00056712,120]
[358478645,1745198216202,-500.0,0.00056985,60]
[358478646,1745198216235,-500.0,0.00056986,120]
[358478647,1745198216268,-500.0,0.00056986,120]
[358478648,1745198216302,-167.92702735,0.00056986,120]
[358478649,1745198216335,-500.0,0.00056986,120]
[358478650,1745198216369,-500.0,0.00056986,120]
[358478651,1745198216403,-500.0,0.00056986,120]
[358478652,1745198216436,-500.0,0.00056986,120]
[358478653,1745198216469,-500.0,0.00056986,120]
[358478654,1745198216504,-506.145053,0.00056986,120]
[358478655,1745198216537,-282.83059269,0.00056986,120]
[358478656,1745198216571,-283.13,0.00056986,120]
[358478657,1745198216606,-304.14,0.00056986,120]
[358478658,1745198216640,-196.52,0.00056986,120]
[358478659,1745198216674,-500.0,0.00056986,120]
[358478660,1745198216708,-500.0,0.00056986,120]
[358478661,1745198216742,-999.0,0.00056986,120]
[358478662,1745198216776,-500.0,0.00056986,120]
[358478663,1745198216810,-500.0,0.00056986,120]
[358478664,1745198216848,-500.0,0.00056986,120]
[358478665,1745198216886,-500.0,0.00056986,120]
[358478666,1745198216922,-500.0,0.00056986,120]
[358478667,1745198216956,-301.4,0.00056986,120]
[358478668,1745198216989,-500.0,0.00056986,120]
[358478669,1745198217023,-229.61817389,0.00056986,120]
[358478670,1745198217057,-531.29608064,0.00056986,120]
[358478671,1745198217091,-500.0,0.00056986,120]
[358478672,1745198217125,-500.0,0.00056986,120]
[358478673,1745198217160,-182.90303064,0.00056986,120]
[358478674,1745198217194,-500.0,0.00056986,120]
[358478675,1745198217228,-500.0,0.00056986,120]
[358478676,1745198217263,-537.05199197,0.00056986,120]
[358478677,1745198217301,-653.23,0.00056986,120]
[358478678,1745198217338,-500.0,0.00056986,120]
[358478679,1745198217374,-500.0,0.00056986,120]
[358478680,1745198217410,-500.0,0.00056986,120]
[358478681,1745198217446,-500.0,0.00056986,120]
[358478682,1745198217482,-500.0,0.00056986,120]
[358478683,1745198217518,-500.0,0.00056986,120]
[358478684,1745198217554,-500.0,0.00056986,120]
[358478685,1745198217591,-500.0,0.00056986,120]
[358478686,1745198217627,-530.16535854,0.00056986,120]
[358478687,1745198217665,-500.0,0.00056986,120]
[358478688,1745198217704,-500.0,0.00056986,120]
[358478689,1745198217742,-500.0,0.00056986,120]
[358478690,1745198217780,-205.7875697,0.00056986,120]
[358478691,1745198217818,-500.0,0.00056986,120]
[358478692,1745198217859,-500.0,0.00056986,120]
[358478693,1745198217906,-500.0,0.00056986,120]
[358478694,1745198217948,-500.0,0.00056986,120]
[358478695,1745198217994,-500.0,0.00056986,120]
[358478696,1745198218037,-500.0,0.00056986,120]
[358478697,1745198218080,-500.0,0.00056986,120]
[358478698,1745198218119,-500.0,0.00056986,120]
[358478699,1745198218156,-500.0,0.00056986,120]
[358478700,1745198218197,-500.0,0.00056986,120]
[358478701,1745198218236,-500.0,0.00056986,120]
[358478702,1745198218276,-500.0,0.00056986,120]
[358478703,1745198218317,-500.0,0.00056986,120]
[358478704,1745198218356,-438.92,0.00056986,120]
[358478705,1745198218397,-500.0,0.00056986,120]
[358478706,1745198218437,-500.0,0.00056986,120]
[358478707,1745198218479,-500.0,0.00056986,120]
[358478708,1745198218534,-500.0,0.00056986,120]
[358478709,1745198218584,-500.0,0.00056986,120]
[358478710,1745198218630,-500.0,0.00056986,120]
[358478711,1745198218679,-500.0,0.00056986,120]
[358478712,1745198218722,-500.0,0.00056986,120]
[358478713,1745198218764,-621.42151912,0.00056986,120]
[358478714,1745198218814,-500.0,0.00056986,120]
[358478715,1745198218856,-500.0,0.00056986,120]
[358478716,1745198218895,-531.16,0.00056986,120]
[358478717,1745198218942,-500.0,0.00056986,120]
[358478718,1745198218981,-500.0,0.00056986,120]
[358478719,1745198219017,-500.0,0.00056986,120]
[358478720,1745198219058,-500.0,0.00056986,120]
[358478721,1745198219097,-500.0,0.00056986,120]
[358478722,1745198219144,-500.0,0.00056986,120]
[358478723,1745198219188,-500.0,0.00056986,120]
[358478724,1745198219230,-500.0,0.00056986,120]
[358478725,1745198219270,-600.69,0.00056986,120]
[358478726,1745198219311,-500.0,0.00056986,120]
[358478727,1745198219351,-562.5,0.00056986,120]
[358478728,1745198219392,-500.0,0.00056986,120]
[358478729,1745198219432,-500.0,0.00056986,120]
[358478730,1745198219471,-500.0,0.00056986,120]
[358478731,1745198219511,-500.0,0.00056986,120]
[358478732,1745198219549,-729.06,0.00056986,120]
[358478733,1745198219588,-500.0,0.00056986,120]
[358478734,1745198219627,-434.29672347,0.00056986,120]
[358478735,1745198219666,-485.05552483,0.00056986,120]
[358478736,1745198219705,-500.0,0.00056986,120]
[358478737,1745198219744,-500.0,0.00056986,120]
[358478738,1745198219788,-500.0,0.00056986,120]
[358478739,1745198219831,-999.0,0.00056986,120]
[358478740,1745198219874,-599.21,0.00056986,120]
[358478741,1745198219913,-500.0,0.00056986,120]
[358478742,1745198219952,-429.37889216,0.00057,120]
[358478743,1745198219991,-151.0,0.0005708,120]
[358478744,1745198220034,-167.3,0.00057144,120]
[358478745,1745198220081,-999.0,0.0005726,120]
[358478746,1745198220123,-1262.889,0.00057295,111]
[358478747,1745198220165,-150.0,0.00057518,120]
[358478748,1745198220209,-500.0,0.00057533,60]
[358478749,1745198220250,-150.0,0.00057533,120]
[358478750,1745198220289,-500.0,0.00057533,60]
[358478751,1745198220326,-355.70670543,0.00057534,120]
[358478752,1745198220363,-492.58684,0.00057534,120]
[358478753,1745198220671,-500.0,0.00057534,120]
[358478754,1745198220710,-316.81,0.00057534,120]
[358478755,1745198220746,-500.0,0.00057534,120]
[358478756,1745198220782,-151.0,0.00057534,120]
[358478757,1745198220817,-999.0,0.00057534,120]
[358478758,1745198220854,-481.29761973,0.00057534,120]
[358478759,1745198220889,-500.0,0.00057534,120]
[358478760,1745198220923,-171.54682341,0.00057534,120]
[358478761,1745198220954,-500.0,0.00057534,120]
[358478762,1745198220985,-500.0,0.00057534,120]
[358478763,1745198221017,-500.0,0.00057534,120]
[358478764,1745198221049,-500.0,0.00057534,120]
[358478765,1745198221082,-500.0,0.00057534,120]
[358478766,1745198221114,-500.0,0.00057534,120]
[358478767,1745198221144,-653.23,0.00057534,120]
[358478768,1745198221177,-500.0,0.00057534,120]
[358478769,1745198221209,-184.26,0.00057534,120]
[358478770,1745198221241,-500.0,0.00057534,120]
[358478771,1745198221272,-500.0,0.00057534,120]
[358478772,1745198221303,-500.0,0.00057534,120]
[358478773,1745198221335,-500.0,0.00057534,120]
[358478774,1745198221366,-500.0,0.00057534,120]
[358478775,1745198221398,-562.91147115,0.00057534,120]
[358478776,1745198221430,-289.75407387,0.00057534,120]
[358478777,1745198221460,-591.40794643,0.00057534,120]
[358478778,1745198221492,-592.98,0.00057534,120]
[358478779,1745198221523,-500.0,0.00057534,120]
[358478780,1745198221555,-500.0,0.00057534,120]
[358478781,1745198221588,-264.12855467,0.00057534,120]
[358478782,1745198221621,-500.0,0.00057534,120]
[358478783,1745198221655,-500.0,0.00057534,120]
[358478784,1745198221692,-500.0,0.00057534,120]
[358478785,1745198221728,-611.90230203,0.00057534,120]
[358478786,1745198221762,-151.0,0.00057534,120]
[358478787,1745198221796,-500.0,0.00057534,120]
[358478788,1745198221831,-500.0,0.00057534,120]
[358478789,1745198221867,-500.0,0.00057534,120]
[358478790,1745198221900,-502.27974199,0.00057534,120]
[358478791,1745198221932,-500.0,0.00057534,120]
[358478792,1745198221963,-283.50965918,0.00057534,120]
[358478793,1745198221994,-500.0,0.00057534,120]
[358478794,1745198222026,-500.0,0.00057534,120]
[358478795,1745198222056,-500.0,0.00057534,120]
[358478796,1745198222088,-293.72,0.00057534,120]
[358478797,1745198222121,-177.9,0.00057534,120]
[358478798,1745198222154,-500.0,0.00057534,120]
[358478799,1745198222184,-531.16,0.00057534,120]
[358478800,1745198222214,-500.0,0.00057534,120]
[358478801,1745198222244,-151.0,0.00057534,120]
[358478802,1745198222276,-500.0,0.00057534,120]
[358478803,1745198222308,-500.0,0.00057534,120]
[358478804,1745198222340,-586.00210286,0.00057534,120]
[358478805,1745198222372,-500.0,0.00057534,120]
[358478806,1745198222407,-500.0,0.00057534,120]
[358478807,1745198222440,-500.0,0.00057534,120]
[358478808,1745198222473,-600.69,0.00057534,120]
[358478809,1745198222505,-500.0,0.00057534,120]
[358478810,1745198222538,-562.5,0.00057534,120]
[358478811,1745198222571,-248.58,0.00057534,120]
[358478812,1745198222604,-500.0,0.00057534,120]
[358478813,1745198222637,-283.57,0.00057534,120]
[358478814,1745198222673,-500.0,0.00057534,120]
[358478815,1745198222706,-729.06,0.00057534,120]
[358478816,1745198222741,-500.0,0.00057534,120]
[358478817,1745198222776,-500.0,0.00057534,120]
[358478818,1745198222809,-280.94,0.00057534,120]
[358478819,1745198222845,-500.0,0.00057534,120]
[358478820,1745198222881,-999.0,0.00057534,120]
[358478821,1745198222921,-322.04,0.00057534,120]
[358478822,1745198222957,-150.0,0.00057644,120]
[358478823,1745198222989,-241.51,0.000577,60]
[358478824,1745198223025,-208.0,0.0005774,30]
[358478825,1745198223061,-211.0,0.0005774,30]
[358478826,1745198223097,-999.0,0.00057808,120]
[358478827,1745198223135,-150.0,0.00057915,120]
[358478828,1745198223175,-1402.35787,0.00058,120]
[358478829,1745198223211,-301.0,0.00058,120]
[358478830,1745198223244,-375000.0,0.00058,120]
[358478831,1745198223281,-500.0,0.00058041,60]
[358478832,1745198223318,-177.930306,0.00058042,120]
[358478833,1745198223355,-177.930306,0.00058042,120]
[358478834,1745198223396,-500.0,0.00058082,120]
[358478835,1745198223435,-533.39560641,0.00058082,120]
[358478836,1745198223473,-999.0,0.00058082,120]
[358478837,1745198223512,-500.0,0.00058082,120]
[358478838,1745198223552,-200.20551073,0.00058082,120]
[358478839,1745198223593,-500.19338511,0.00058082,120]
[358478840,1745198223634,-500.0,0.00058082,120]
[358478841,1745198223678,-318.81,0.00058082,120]
[358478842,1745198223721,-500.0,0.00058082,120]
[358478843,1745198223761,-473.98,0.00058082,120]
[358478844,1745198223801,-653.23,0.00058082,120]
[358478845,1745198223846,-500.0,0.00058082,120]
[358478846,1745198223886,-500.0,0.00058082,120]
[358478847,1745198223928,-500.0,0.00058082,120]
[358478848,1745198223967,-561.78,0.00058082,120]
[358478849,1745198224004,-164.013135,0.00058082,120]
[358478850,1745198224040,-500.0,0.00058082,120]
[358478851,1745198224078,-500.0,0.00058082,120]
[358478852,1745198224114,-500.0,0.00058082,120]
[358478853,1745198224150,-500.0,0.00058082,120]
[358478854,1745198224321,-500.0,0.00058082,120]
[358478855,1745198224360,-500.0,0.00058082,120]
[358478856,1745198224399,-500.0,0.00058082,120]
[358478857,1745198224437,-557.57,0.00058082,120]
[358478858,1745198224474,-500.0,0.00058082,120]
[358478859,1745198224510,-500.0,0.00058082,120]